fUSD/lending_fUSD_20251229
["ID","MTS","AMOUNT","RATE_DAILY","PERIOD"]
[399993250,1766989746910,-85433.02306585,0.00015056,2]
[399993268,1766989832104,-346.78075065,0.00014573,2]
[399993276,1766989832162,-153.21924935,0.00014573,2]
[399993277,1766989832171,-250.0,0.00014693,2]
[399993278,1766989832181,-228.63615813,0.00014814,2]
[399993280,1766989832335,-71.36384187,0.00014814,2]
[399993282,1766989832345,-927.63615813,0.00015046,2]
[399993284,1766989832356,-518.04655203,0.00015046,2]
[399993295,1766989838144,-6771.26728984,0.00015046,2]
[399993296,1766989838154,-6813.3638001,0.00015046,2]
[399993297,1766989838375,-1403.5861999,0.00015046,2]
[399993298,1766989838384,-316.10000026,0.00015055,2]
[399993299,1766989838440,-183.89999974,0.00015055,2]
[399993300,1766989838450,-500.0,0.00015055,2]
[399993301,1766989838460,-359.43441426,0.00015055,2]
[399993302,1766989838470,-500.0,0.00015055,2]
[399993303,1766989838479,-269.18760357,0.00015055,2]
[399993304,1766989838489,-300.0,0.00015055,2]
[399993305,1766989838498,-300.0,0.00015055,2]
[399993306,1766989838507,-300.0,0.00015055,2]
[399993307,1766989838520,-256327.55905042,0.00015056,2]
[399993308,1766989838532,-16402.00640134,0.00015056,2]
[399993309,1766989838543,-1341.69773257,0.00015056,2]
[399993310,1766989838555,-1260.0,0.00015056,2]
[399993311,1766989838567,-1118.10003,0.00015056,2]
[399993326,1766989840257,-638117.61371982,0.00015056,2]
[399993327,1766989840267,-300.0,0.00015068,2]
[399993328,1766989840277,-300.0,0.00015068,2]
[399993329,1766989840286,-504.1114483,0.00015121,2]
[399993330,1766989840296,-504.60203633,0.00015121,2]
[399993331,1766989840306,-39188.3266749,0.00015156,2]
[399993332,1766989840315,-22282.6413786,0.00015156,2]
[399993333,1766989840324,-51615.732165,0.00015156,2]
[399993334,1766989840333,-1228.1456038,0.00015156,2]
[399993335,1766989840341,-1227.9493348,0.00015156,2]
[399993336,1766989840351,-4554.55,0.00015383,2]
[399993337,1766989840360,-500.0,0.00015385,2]
[399993338,1766989840369,-3327.8195563,0.00015605,2]
[399993339,1766989840378,-300.0,0.0001562,2]
[399993340,1766989840387,-250.0,0.0001562,2]
[399993341,1766989840397,-18299.95,0.0001563,2]
[399993342,1766989840406,-207.02431502,0.00015687,2]
[399993343,1766989840415,-1000.0,0.00015873,2]
[399993344,1766989840424,-1239.78422832,0.00015873,2]
[399993345,1766989840433,-1046.87343686,0.0001593,2]
[399993346,1766989840443,-173.55490716,0.00015963,2]
[399993347,1766989840452,-150.99,0.00015972,2]
[399993348,1766989840461,-151.0,0.00015972,2]
[399993349,1766989840470,-151.0,0.00015972,2]
[399993350,1766989840479,-500.0,0.00015973,2]
[399993351,1766989840488,-1195.74,0.00015973,2]
[399993352,1766989840497,-1176.79,0.00015973,2]
[399993353,1766989840507,-1195.8,0.00015973,2]
[399993354,1766989840520,-150.99,0.00015973,2]
[399993355,1766989840530,-2965.36,0.00015973,2]
[399993356,1766989840539,-299.99,0.00015973,2]
[399993357,1766989840548,-4999.99,0.00015973,2]
[399993358,1766989840558,-29241.96,0.00015973,2]
[399993359,1766989840567,-9999.99,0.00015973,2]
[399993360,1766989840576,-67533.89,0.00015973,2]
[399993361,1766989840586,-512.22,0.00015973,2]
[399993362,1766989840596,-9999.99,0.00015973,2]
[399993363,1766989840605,-501.72717429,0.00015973,2]
[399993364,1766989840614,-500.0,0.00015973,2]
[399993365,1766989840624,-502.71972543,0.00015973,2]
[399993366,1766989840633,-500.0,0.00015973,2]
[399993367,1766989840643,-500.0,0.00015973,2]
[399993368,1766989840652,-500.0,0.00015973,2]
[399993370,1766989840662,-500.0,0.00015973,2]
[399993371,1766989840671,-500.0,0.00015973,2]
[399993372,1766989840680,-500.0,0.00015973,2]
[399993373,1766989840690,-500.0,0.00015973,2]
[399993374,1766989840699,-500.0,0.00015973,2]
[399993375,1766989840709,-500.0,0.00015973,2]
[399993376,1766989840718,-500.0,0.00015973,2]
[399993377,1766989840727,-500.0,0.00015973,2]
[399993378,1766989840737,-503.27793743,0.00015973,2]
[399993379,1766989840746,-500.0,0.00015973,2]
[399993380,1766989840755,-566.52825707,0.00015973,2]
[399993381,1766989840767,-501.8197747,0.00015973,2]
[399993382,1766989840776,-500.0,0.00015973,2]
[399993383,1766989840785,-500.0,0.00015973,2]
[399993384,1766989840794,-543.507543,0.00015973,2]
[399993385,1766989840804,-151.0,0.00015976,2]
[399993386,1766989840813,-151.0,0.00015976,2]
[399993388,1766989840822,-502.66220405,0.00016,2]
[399993390,1766989840831,-999.99,0.0001601,2]
[399993392,1766989840840,-300.0,0.0001603,2]
[399993393,1766989840849,-250.0,0.0001603,2]
[399993394,1766989840858,-320.6,0.00016082,2]
[399993396,1766989840868,-200.0,0.00016083,2]
[399993398,1766989840877,-189.93180526,0.00016083,2]
[399993400,1766989840886,-500.0,0.00016083,2]
[399993402,1766989840896,-500.0,0.00016083,2]
[399993404,1766989840905,-500.0,0.00016083,2]
[399993406,1766989840918,-500.0,0.00016083,2]
[399993408,1766989840927,-517.28818267,0.00016183,2]
[399993410,1766989840936,-521.66547339,0.00016183,2]
[399993412,1766989840946,-510.0,0.00016184,2]
[399993414,1766989840955,-12478.89931116,0.000162,5]
[399993416,1766989840964,-200.0,0.00016244,2]
[399993418,1766989840973,-600.88665179,0.00016247,2]
[399993420,1766989840983,-500.0,0.00016302,2]
[399993422,1766989840992,-317.02355282,0.00016338,2]
[399993424,1766989841002,-320.6,0.00016356,2]
[399993425,1766989841012,-226.14,0.00016438,2]
[399993426,1766989841022,-4361.79,0.00016438,2]
[399993427,1766989841033,-164.62,0.0001644,2]
[399993428,1766989841045,-164.62,0.0001644,2]
[399993429,1766989841054,-164.62,0.0001644,2]
[399993430,1766989841064,-164.62,0.0001644,2]
[399993431,1766989841074,-164.62,0.0001644,2]
[399993432,1766989841083,-420.0,0.00016476,2]
[399993433,1766989841092,-420.0,0.00016476,2]
[399993434,1766989841103,-503.32062661,0.00016521,2]
[399993435,1766989841112,-1000.0,0.00016521,2]
[399993436,1766989841121,-505.33896686,0.00016521,2]
[399993437,1766989841132,-501.90532501,0.00016521,2]
[399993438,1766989841141,-1000.0,0.00016521,2]
[399993439,1766989841151,-1000.0,0.00016521,2]
[399993440,1766989841160,-1000.0,0.00016521,2]
[399993441,1766989841170,-1000.0,0.00016521,2]
[399993442,1766989841180,-504.3751808,0.00016521,2]
[399993443,1766989841191,-501.7030822,0.00016521,2]
[399993444,1766989841201,-1002.96905767,0.00016521,2]
[399993445,1766989841211,-1003.1591198,0.00016521,2]
[399993446,1766989841223,-780.77410778,0.00016521,2]
[399993447,1766989841234,-502.53594448,0.00016521,2]
[399993448,1766989841244,-1000.0,0.00016521,2]
[399993449,1766989841255,-236.69402778,0.00016534,2]
[399993450,1766989841265,-195.0,0.00016561,2]
[399993451,1766989841276,-166.66,0.0001658,2]
[399993452,1766989841285,-320.6,0.0001663,2]
[399993453,1766989841294,-165.42,0.00016712,2]
[399993454,1766989841304,-94196.06392988,0.000169,2]
[399993455,1766989841313,-320.6,0.00016904,2]
[399993456,1766989841322,-220.76404125,0.0001691,2]
[399993457,1766989841331,-341.34054317,0.0001691,2]
[399993458,1766989841341,-990.232452,0.0001691,2]
[399993459,1766989841351,-250.0,0.00016959,2]
[399993460,1766989841360,-150.22881909,0.00016973,2]
[399993461,1766989841369,-163.61156298,0.00016973,2]
[399993462,1766989841378,-150.0,0.00016973,2]
[399993463,1766989841388,-164.62,0.0001699,2]
[399993464,1766989841397,-164.62,0.0001699,2]
[399993465,1766989841407,-164.62,0.0001699,2]
[399993466,1766989841416,-164.62,0.0001699,2]
[399993467,1766989841425,-300.0,0.00016999,2]
[399993468,1766989841434,-675.6926152,0.00016999,2]
[399993469,1766989841444,-1721127.11561179,0.00017,2]
[399993470,1766989841698,-7868.64336682,0.00017,2]
[399993471,1766989841711,-2175.02066338,0.00017,2]
[399993472,1766989841722,-1109.86639144,0.00017,2]
[399993473,1766989841733,-8968.96,0.00017,2]
[399993474,1766989841748,-999.99995,0.00017,2]
[399993475,1766989841759,-1103.8452619,0.00017,2]
[399993478,1766989844757,-3874.85299278,0.00017,2]
[399993508,1766989845214,-746.67312324,0.00017,2]
[399993512,1766989845232,-49699.31148721,0.00017,2]
[399993569,1766989846174,-3838.64415084,0.00017,2]
[399993571,1766989846299,-3214.45719084,0.00017,2]
[399993573,1766989846311,-3437.71784556,0.00017,2]
[399993576,1766989846324,-423.74647872,0.00017,2]
[399993578,1766989846335,-140413.21040692,0.00017,2]
[399993583,1766989846373,-1188.27540244,0.00017,2]
[399993585,1766989846384,-1203.37088605,0.00017,2]
[399993587,1766989846394,-611.68963455,0.00017,2]
[399993590,1766989846405,-433.02848958,0.00017,2]
[399993592,1766989846416,-274.18,0.00017,2]
[399993594,1766989846426,-1185.3213471,0.00017,2]
[399993596,1766989846437,-2245.3092668,0.00017,2]
[399993598,1766989846447,-404.72580003,0.00017,2]
[399993601,1766989846457,-745.7042,0.00017,2]
[399993603,1766989846471,-20495.6975725,0.00017,2]
[399993605,1766989846482,-709.56387493,0.00017,2]
[399993607,1766989846493,-2183.75458493,0.00017,2]
[399993608,1766989846503,-154296.18406026,0.00017,2]
[399993648,1766990198113,-500.0,0.00013599,2]
[399993649,1766990198134,-55.83458376,0.00013842,2]
[399993650,1766990222761,375.04,7.648e-05,2]
[399993651,1766990222948,375.04,8.05e-05,2]
[399993652,1766990223144,375.04,8.453e-05,2]
[399993653,1766990223333,375.04,8.855e-05,2]
[399993654,1766990223527,375.04,9.258e-05,2]
[399993655,1766990223715,375.04,9.66e-05,2]
[399993656,1766990223927,375.04,0.00010063,2]
[399993657,1766990224131,375.04,0.00010465,2]
[399993658,1766990224348,375.04,0.00010868,2]
[399993659,1766990224634,375.04,0.0001127,2]
[399993660,1766990224831,375.04,0.00011673,2]
[399993661,1766990225033,375.04,0.00012076,2]
[399993662,1766990225267,375.04,0.00012478,2]
[399993663,1766990226799,-375.04,0.00012881,2]
[399993664,1766990227516,-375.04,0.00013283,2]
[399993665,1766990227539,-193.88020266,0.00013686,2]
[399993666,1766990272976,-173.24399585,0.00013686,2]
[399993667,1766990362975,-7.91580149,0.00013686,2]
[399993668,1766990363001,-162.35939663,0.00013842,2]
[399993669,1766990408552,-214.16117571,0.00013842,2]
[399993670,1766990441521,150.0,0.00027397,120]
[399993671,1766990441697,239.74596544,0.00027424,120]
[399993672,1766990467945,-156.18120555,0.0001383,2]
[399993673,1766990482952,-10.47879445,0.0001383,2]
[399993674,1766990482973,-183.58790347,0.00013836,2]
[399993678,1766990677990,-182.28297071,0.00013836,2]
[399993679,1766990680514,-321.2470191,0.00013836,2]
[399993681,1766990813693,-65.39021289,0.00013836,2]
[399993682,1766990813718,-116.41209653,0.00013836,2]
[399993683,1766990813742,-49.83882429,0.00013842,2]
[399993684,1766990813770,-8.57632391,0.00014055,2]
[399993685,1766990887979,-250.91780948,0.00013961,2]
[399993686,1766990890165,-195.36341331,0.00013961,2]
[399993688,1766991008778,-178.76480256,0.00013961,2]
[399993689,1766991011399,-250.0,0.00013961,2]
[399993690,1766991016020,-238.0,0.00013961,2]
[399993691,1766991017461,-438.29519744,0.00013961,2]
[399993693,1766991032341,-1188.0,0.00013961,2]
[399993694,1766991032353,-815.86407937,0.00013961,2]
[399993695,1766991032364,-325.38469784,0.00013961,2]
[399993696,1766991032374,-265.0,0.00013961,2]
[399993697,1766991032384,-287.11530216,0.00014054,2]
[399993698,1766991032395,-12.88469784,0.00014054,2]
[399993699,1766991032404,-7498.15,0.00014055,2]
[399993700,1766991032415,-2881.83094827,0.00014056,2]
[399993701,1766991032425,-300.0,0.00014057,2]
[399993702,1766991032434,-214.16117571,0.00014082,2]
[399993703,1766991032444,-375.04,0.00014088,2]
[399993704,1766991032453,-166.66,0.00014122,2]
[399993705,1766991032463,-150.0,0.00014129,2]
[399993706,1766991032472,-999.0,0.0001413,3]
[399993707,1766991032482,-38711.98378496,0.0001413,2]
[399993708,1766991032494,-1503.5799839,0.0001413,2]
[399993709,1766991032506,-2205.88592063,0.0001413,2]
[399993710,1766991032517,-4340.0,0.0001413,2]
[399993711,1766991032528,-296.0765777,0.0001413,2]
[399993712,1766991032540,-503.95767699,0.0001413,2]
[399993713,1766991032552,-6199.85794571,0.0001413,2]
[399993715,1766991032564,-13772.54811011,0.0001413,2]
[399993716,1766991032573,-299.99,0.0001413,2]
[399993717,1766991032584,-1195.8,0.0001413,2]
[399993718,1766991032593,-150.99,0.0001413,2]
[399993719,1766991032603,-512.22,0.0001413,2]
[399993720,1766991032613,-150.99,0.0001413,2]
[399993721,1766991032623,-9999.99,0.0001413,2]
[399993723,1766991032632,-4999.99,0.0001413,2]
[399993725,1766991032642,-999.99,0.0001413,2]
[399993727,1766991032652,-2965.36,0.0001413,2]
[399993729,1766991032660,-211.4820972,0.0001413,2]
[399993732,1766991032671,-9788.5079028,0.0001413,2]
[399993735,1766991032680,-1176.79,0.0001413,2]
[399993738,1766991032690,-166.66,0.00014413,2]
[399993740,1766991032700,-375.04,0.00014491,2]
[399993741,1766991032709,-206.60382381,0.00014571,2]
[399993743,1766991032718,-29241.96,0.00014572,2]
[399993745,1766991032727,-504.1114483,0.00014573,2]
[399993747,1766991032737,-245.77433719,0.00014573,2]
[399993749,1766991032746,-500.0,0.00014573,2]
[399993751,1766991032755,-277.0265309,0.00014573,2]
[399993752,1766991032764,-344.9097998,0.00014573,2]
[399993753,1766991032774,-500.0,0.00014573,2]
[399993754,1766991032783,-436.28,0.00014588,2]
[399993755,1766991032792,-150.0,0.00014588,2]
[399993756,1766991032802,-11198.02975323,0.00014636,2]
[399993757,1766991032814,-166.66,0.00014704,2]
[399993758,1766991032824,-200.0,0.0001474,2]
[399993759,1766991032833,-375.04,0.00014893,2]
[399993760,1766991032843,-1000.0,0.00014956,2]
[399993761,1766991032853,-166.66,0.00014995,2]
[399993762,1766991032863,-207.4,0.00015012,2]
[399993763,1766991032872,-200.0,0.00015012,2]
[399993764,1766991032882,-793.18485038,0.00015021,2]
[399993765,1766991032892,-453.33883557,0.00015021,2]
[399993766,1766991032901,-404.20298881,0.00015055,2]
[399993767,1766991032911,-500.0,0.00015055,2]
[399993768,1766991032920,-286.76446351,0.00015055,2]
[399993769,1766991032933,-213.23553649,0.00015055,2]
[399993770,1766991032942,-500.0,0.00015055,2]
[399993771,1766991032952,-517.28818267,0.00015055,2]
[399993772,1766991032962,-500.0,0.00015055,2]
[399993773,1766991032971,-500.0,0.00015055,2]
[399993774,1766991032982,-500.0,0.00015055,2]
[399993775,1766991032991,-521.66547339,0.00015055,2]
[399993776,1766991033000,-500.0,0.00015055,2]
[399993777,1766991033010,-42.65981509,0.00015121,2]
[399993778,1766991038377,-957.34018491,0.00015121,2]
[399993779,1766991038388,-848.1212303,0.00015121,2]
[399993780,1766991038397,-255.0,0.00015246,2]
[399993781,1766991038407,-166.66,0.00015286,2]
[399993782,1766991038417,-375.04,0.00015296,2]
[399993783,1766991038427,-13006.14,0.00015324,2]
[399993784,1766991038436,-500.0,0.00015329,2]
[399993785,1766991038446,-300.0,0.00015357,2]
[399993786,1766991038455,-300.0,0.00015357,2]
[399993787,1766991038464,-420.0,0.00015397,2]
[399993788,1766991038474,-195.0,0.00015461,2]
[399993789,1766991038484,-300.0,0.00015461,2]
[399993790,1766991038493,-300.0,0.00015461,2]
[399993791,1766991038502,-337.64060337,0.00015461,2]
[399993792,1766991038513,-500.0,0.00015484,2]
[399993793,1766991038522,-600.88665179,0.00015603,2]
[399993794,1766991038531,-1500.0,0.00015668,2]
[399993795,1766991038541,-151.0,0.00015676,2]
[399993796,1766991038550,-151.0,0.00015676,2]
[399993797,1766991038559,-151.0,0.00015677,2]
[399993798,1766991038569,-151.0,0.00015677,2]
[399993799,1766991038579,-151.0,0.00015678,2]
[399993800,1766991038588,-151.0,0.00015678,2]
[399993801,1766991038597,-151.0,0.00015678,2]
[399993802,1766991038606,-151.0,0.00015678,2]
[399993803,1766991038615,-150.0,0.00015699,2]
[399993804,1766991038623,-157.53371708,0.00015726,2]
[399993806,1766991038632,-296.1,0.00015755,2]
[399993808,1766991038641,-204.49731794,0.00015878,2]
[399993809,1766991038651,-501.8197747,0.00015973,2]
[399993811,1766991038660,-500.0,0.00015973,2]
[399993814,1766991038670,-500.0,0.00015973,2]
[399993815,1766991038680,-500.0,0.00015973,2]
[399993817,1766991038689,-500.0,0.00015973,2]
[399993819,1766991038699,-500.0,0.00015973,2]
[399993821,1766991038708,-500.0,0.00015973,2]
[399993823,1766991038721,-500.0,0.00015973,2]
[399993825,1766991038731,-500.0,0.00015973,2]
[399993826,1766991038740,-500.0,0.00015973,2]
[399993827,1766991038749,-501.72717429,0.00015973,2]
[399993828,1766991038759,-500.0,0.00015973,2]
[399993829,1766991038769,-500.0,0.00015973,2]
[399993830,1766991038779,-566.52825707,0.00015973,2]
[399993831,1766991038788,-160.38622711,0.00015973,2]
[399993832,1766991038797,-500.0,0.00015973,2]
[399993833,1766991038807,-536.39481375,0.00015973,2]
[399993834,1766991038821,-500.0,0.00015973,2]
[399993836,1766991038831,-500.0,0.00015973,2]
[399993838,1766991038840,-500.0,0.00015973,2]
[399993839,1766991038849,-502.71972543,0.00015973,2]
[399993840,1766991038860,-500.0,0.00015973,2]
[399993841,1766991038870,-500.0,0.00015973,2]
[399993842,1766991038879,-500.0,0.00015973,2]
[399993843,1766991038891,-500.0,0.00015973,2]
[399993844,1766991038901,-500.0,0.00015973,2]
[399993845,1766991038911,-500.0,0.00015973,2]
[399993847,1766991038920,-500.0,0.00015973,2]
[399993849,1766991038934,-500.0,0.00015973,2]
[399993851,1766991038944,-500.0,0.00015973,2]
[399993853,1766991038953,-500.0,0.00015973,2]
[399993855,1766991038963,-500.0,0.00015973,2]
[399993857,1766991038973,-503.27793743,0.00015973,2]
[399993859,1766991038982,-500.0,0.00015973,2]
[399993861,1766991038992,-500.0,0.00015973,2]
[399993863,1766991039001,-500.0,0.00015973,2]
[399993865,1766991039011,-500.0,0.00015973,2]
[399993867,1766991039020,-500.0,0.00015973,2]
[399993869,1766991039030,-500.0,0.00015973,2]
[399993871,1766991039040,-543.507543,0.00015973,2]
[399993873,1766991039050,-1096.28,0.00015973,2]
[399993875,1766991039059,-158.72,0.00016002,2]
[399993877,1766991039069,-4486.89,0.00016116,2]
[399993879,1766991039079,-257.21,0.00016146,2]
[399993881,1766991039089,-150.73404556,0.00016164,2]
[399993882,1766991039099,-150.0,0.00016164,2]
[399993883,1766991039109,-150.0,0.00016164,2]
[399993884,1766991039118,-500.0,0.00016164,2]
[399993885,1766991039128,-150.0,0.00016164,2]
[399993886,1766991039137,-150.0,0.00016164,2]
[399993887,1766991039147,-150.0,0.00016164,2]
[399993888,1766991039156,-150.0,0.00016164,2]
[399993889,1766991039165,-150.0,0.00016164,2]
[399993890,1766991039175,-165.12680531,0.00016164,2]
[399993891,1766991039184,-162.16080322,0.00016191,2]
[399993892,1766991039194,-150.0,0.00016191,2]
[399993893,1766991039203,-500.0,0.00016191,2]
[399993894,1766991039212,-150.0,0.00016191,2]
[399993895,1766991039222,-175.8191271,0.00016191,2]
[399993896,1766991039231,-150.0,0.00016191,2]
[399993897,1766991039240,-150.0,0.00016191,2]
[399993898,1766991039250,-150.0,0.00016191,2]
[399993899,1766991039260,-350.95826542,0.00016192,2]
[399993900,1766991039269,-1743.75953349,0.00016216,2]
[399993901,1766991039279,-157.68957014,0.00016219,2]
[399993902,1766991039292,-310.19111312,0.00016219,2]
[399993903,1766991039301,-158.71398149,0.00016219,2]
[399993904,1766991039311,-150.0,0.00016219,2]
[399993905,1766991039320,-150.0,0.00016246,2]
[399993906,1766991039330,-1096.28,0.00016247,2]
[399993907,1766991039339,-150.0,0.00016274,2]
[399993908,1766991039348,-250.0,0.00016301,2]
[399993909,1766991039358,-436.28,0.00016411,2]
[399993910,1766991039367,-15959.74622338,0.00016421,2]
[399993911,1766991039376,-1054.75584082,0.00016438,2]
[399993912,1766991039385,-1054.75584082,0.00016438,2]
[399993913,1766991039394,-1054.75584082,0.00016438,2]
[399993914,1766991039404,-1054.75584082,0.00016438,2]
[399993915,1766991039413,-1054.75584082,0.00016438,2]
[399993916,1766991039424,-1054.75584082,0.00016438,2]
[399993917,1766991039435,-1054.75584082,0.00016438,2]
[399993918,1766991039443,-1054.75584082,0.00016438,2]
[399993919,1766991039453,-1054.75584082,0.00016438,2]
[399993920,1766991039463,-1054.75584082,0.00016438,2]
[399993921,1766991039474,-1054.75584082,0.00016438,2]
[399993922,1766991039487,-1054.75584082,0.00016438,2]
[399993923,1766991039496,-1054.75584082,0.00016438,2]
[399993924,1766991039506,-1054.75584082,0.00016438,2]
[399993925,1766991039516,-1054.75584082,0.00016438,2]
[399993926,1766991039526,-1054.75584082,0.00016438,2]
[399993927,1766991039536,-1054.75584082,0.00016438,2]
[399993928,1766991039547,-1054.75584082,0.00016438,2]
[399993929,1766991039557,-1054.75584082,0.00016438,2]
[399993930,1766991039568,-1054.75584082,0.00016438,2]
[399993931,1766991039578,-1054.75584082,0.00016438,2]
[399993932,1766991039590,-1054.75584082,0.00016438,2]
[399993933,1766991039601,-1054.75584082,0.00016438,2]
[399993934,1766991039610,-1054.75584082,0.00016438,2]
[399993935,1766991039621,-1054.75584082,0.00016438,2]
[399993936,1766991039631,-1054.75584082,0.00016438,2]
[399993937,1766991039641,-1054.75584082,0.00016438,2]
[399993938,1766991039653,-1054.75584082,0.00016438,2]
[399993939,1766991039663,-1054.75584082,0.00016438,2]
[399993940,1766991039677,-1054.75584082,0.00016438,2]
[399993941,1766991039689,-1054.75584082,0.00016438,2]
[399993942,1766991039699,-1054.75584082,0.00016438,2]
[399993943,1766991039711,-1054.75584082,0.00016438,2]
[399993944,1766991039722,-1054.75584082,0.00016438,2]
[399993945,1766991039734,-1054.75584082,0.00016438,2]
[399993946,1766991039744,-1054.75584082,0.00016438,2]
[399993947,1766991039753,-1054.75584082,0.00016438,2]
[399993948,1766991039764,-1054.75584082,0.00016438,2]
[399993949,1766991039775,-1054.75584082,0.00016438,2]
[399993950,1766991039785,-1054.75584082,0.00016438,2]
[399993951,1766991039795,-1054.75584082,0.00016438,2]
[399993952,1766991039806,-1054.75584082,0.00016438,2]
[399993953,1766991039821,-1054.75584082,0.00016438,2]
[399993954,1766991039831,-1054.75584082,0.00016438,2]
[399993955,1766991039839,-1054.75584082,0.00016438,2]
[399993956,1766991039848,-1054.75584082,0.00016438,2]
[399993957,1766991039859,-1054.75584082,0.00016438,2]
[399993958,1766991039869,-1054.75584082,0.00016438,2]
[399993959,1766991039880,-1054.75584082,0.00016438,2]
[399993960,1766991039891,-1054.75584082,0.00016438,2]
[399993961,1766991039900,-1054.75584082,0.00016438,2]
[399993962,1766991039909,-1054.75584082,0.00016438,2]
[399993963,1766991039919,-1054.75584082,0.00016438,2]
[399993964,1766991039929,-1054.75584082,0.00016438,2]
[399993965,1766991039938,-1054.75584082,0.00016438,2]
[399993966,1766991039948,-1054.75584082,0.00016438,2]
[399993967,1766991039958,-1054.75584082,0.00016438,2]
[399993968,1766991039968,-1054.75584082,0.00016438,2]
[399993969,1766991039978,-1054.75584082,0.00016438,2]
[399993970,1766991039988,-1054.75584082,0.00016438,2]
[399993971,1766991039998,-1054.75584082,0.00016438,2]
[399993972,1766991040007,-1054.75584082,0.00016438,2]
[399993973,1766991040017,-1054.75584082,0.00016438,2]
[399993974,1766991040026,-1019.59731278,0.00016438,2]
[399993975,1766991040036,-1019.59731278,0.00016438,2]
[399993976,1766991040045,-1019.59731278,0.00016438,2]
[399993977,1766991040054,-1019.59731278,0.00016438,2]
[399993978,1766991040063,-1019.59731278,0.00016438,2]
[399993979,1766991040072,-1019.59731278,0.00016438,2]
[399993980,1766991040082,-1019.59731278,0.00016438,2]
[399993981,1766991040091,-1019.59731278,0.00016438,2]
[399993982,1766991040100,-1019.59731278,0.00016438,2]
[399993983,1766991040109,-1019.59731278,0.00016438,2]
[399993984,1766991040119,-1019.59731278,0.00016438,2]
[399993985,1766991040128,-1019.59731278,0.00016438,2]
[399993986,1766991040137,-1019.59731278,0.00016438,2]
[399993987,1766991040146,-1019.59731278,0.00016438,2]
[399993988,1766991040155,-1019.59731278,0.00016438,2]
[399993989,1766991040164,-1019.59731278,0.00016438,2]
[399993990,1766991040173,-1019.59731278,0.00016438,2]
[399993991,1766991040182,-1019.59731278,0.00016438,2]
[399993992,1766991040192,-1019.59731278,0.00016438,2]
[399993993,1766991040201,-1019.59731278,0.00016438,2]
[399993994,1766991040210,-1019.59731278,0.00016438,2]
[399993995,1766991040220,-1019.59731278,0.00016438,2]
[399993996,1766991040229,-1019.59731278,0.00016438,2]
[399993997,1766991040239,-1019.59731278,0.00016438,2]
[399993998,1766991040248,-1019.59731278,0.00016438,2]
[399993999,1766991040257,-1019.59731278,0.00016438,2]
[399994000,1766991040268,-1019.59731278,0.00016438,2]
[399994001,1766991040277,-226.14,0.00016438,2]
[399994002,1766991040288,-388.0,0.00016447,2]
[399994003,1766991040297,-501.47147345,0.00016521,2]
[399994004,1766991040306,-503.31110579,0.00016521,2]
[399994005,1766991040315,-504.17376064,0.00016521,2]
[399994006,1766991040325,-503.96524833,0.00016521,2]
[399994007,1766991040336,-503.01610254,0.00016521,2]
[399994008,1766991040345,-1002.62712085,0.00016521,2]
[399994009,1766991040354,-1084.91100007,0.00016521,2]
[399994010,1766991040364,-844.64524538,0.00016521,2]
[399994011,1766991040375,-503.32062661,0.00016521,2]
[399994012,1766991040623,-503.10953443,0.00016521,2]
[399994013,1766991040645,-780.77410778,0.00016521,2]
[399994014,1766991040655,-1004.02830668,0.00016521,2]
[399994015,1766991040666,-1002.02590134,0.00016521,2]
[399994016,1766991040676,-1018.93886798,0.00016521,2]
[399994017,1766991040685,-1000.0,0.00016521,2]
[399994018,1766991040696,-504.39250558,0.00016521,2]
[399994019,1766991040706,-1000.0,0.00016521,2]
[399994020,1766991040716,-1000.0,0.00016521,2]
[399994021,1766991040727,-1003.43986952,0.00016521,2]
[399994022,1766991040736,-1000.0,0.00016521,2]
[399994023,1766991040746,-504.3751808,0.00016521,2]